bitfinex-derivatives/quotes_BTCF0:USTF0_20241029
["timestamp","ask_amount","ask_price","bid_price","bid_amount"]
[1730231742206,0.13185082,73003.0,72996.0,0.0685]
[1730231742407,0.068492,73005.0,72996.0,0.0685]
[1730231742408,0.13185082,72999.0,72996.0,0.0685]
[1730231742708,0.13185082,72999.0,72991.0,0.12672]
[1730231742907,0.3608,73000.0,72991.0,0.068505]
[1730231742908,0.13185082,72992.0,72991.0,0.068505]
[1730231743306,1.63185082,72992.0,72991.0,0.068505]
[1730231743513,1.5,72992.0,72991.0,0.068505]
[1730231744099,1.5,72992.0,72991.0,0.08910202]
[1730231744415,1.50170223,72992.0,72991.0,0.08910202]
[1730231744710,1.50170223,72992.0,72991.0,0.02059702]
[1730231744910,1.50170223,72992.0,72986.0,0.72272]
[1730231745104,1.50170223,72992.0,72986.0,0.74261338]
[1730231745305,0.00170223,72989.0,72986.0,0.81112238]
[1730231745809,0.00170223,72989.0,72987.0,0.068508]
[1730231746007,0.00170223,72989.0,72986.0,0.74369338]
[1730231746219,0.06498804,72988.0,72986.0,0.02101338]
[1730231746404,0.06498804,72988.0,72975.0,0.068519]
[1730231746405,0.068513,72983.0,72975.0,0.068519]
[1730231746605,0.13185082,72981.0,72974.0,0.06852]
[1730231746805,0.06307487,72980.0,72974.0,0.06852]
[1730231747105,0.06307487,72979.0,72975.0,0.068519]
[1730231747306,0.00188112,72977.0,72975.0,0.068519]
[1730231747507,0.06242775,72976.0,72975.0,0.068519]
[1730231747707,0.00188112,72977.0,72976.0,0.068519]
[1730231749903,0.00188112,72977.0,72975.0,0.3608]
[1730231750310,0.20036082,72985.0,72975.0,0.3608]
[1730231750618,0.00188112,72976.0,72975.0,0.42932]
[1730231751717,0.00188112,72976.0,72975.0,0.06852]
[1730231751922,0.00188112,72976.0,72974.0,0.02073618]
[1730231752121,0.00188112,72976.0,72972.0,0.068521]
[1730231752329,0.00188112,72976.0,72973.0,0.068521]
[1730231752628,0.00188112,72974.0,72973.0,0.068521]
[1730231753122,0.13373194,72974.0,72970.0,0.02026941]
[1730231753315,0.00188112,72974.0,72969.0,0.3608]
[1730231753520,0.00188112,72972.0,72971.0,0.068523]
[1730231753731,0.00188112,72972.0,72971.0,0.20037382]
[1730231755133,0.00358251,72972.0,72971.0,0.13185082]
[1730231755434,0.00358251,72972.0,72971.0,0.20037382]
[1730231756424,0.00358251,72972.0,72969.0,0.38175943]
[1730231756616,0.00358251,72972.0,72969.0,0.45028443]
[1730231757226,0.00358251,72971.0,72969.0,0.02095943]
[1730231757530,0.00358251,72971.0,72968.0,0.00205557]
[1730231758226,1.50358251,72970.0,72968.0,0.00205557]
[1730231758631,0.00358251,72970.0,72968.0,0.00205557]
[1730231758935,0.00358251,72970.0,72969.0,0.068525]
[1730231759136,1.5,72974.0,72969.0,0.479645]
[1730231759337,0.068503,72993.0,72988.0,0.068507]
[1730231759527,0.13185082,72993.0,72987.0,0.068507]
[1730231759727,1.5,72992.0,72987.0,0.068507]
[1730231759928,1.5,72992.0,72988.0,0.13185082]
[1730231760132,0.13185082,72989.0,72979.0,0.3608]
[1730231760329,0.1397,72988.0,72981.0,0.068513]
[1730231760533,0.1397,72988.0,72982.0,0.068513]
[1730231760729,1.5,72987.0,72982.0,0.068513]
[1730231760925,0.1397,72988.0,72980.0,0.13185082]
[1730231761229,0.1397,72988.0,72984.0,0.068511]
[1730231761429,0.13185082,72985.0,72979.0,0.3817294]
[1730231761622,0.13185082,72981.0,72979.0,0.3817294]
[1730231762028,0.20036482,72981.0,72979.0,0.3817294]
[1730231762328,0.068515,72980.0,72979.0,0.3817294]
[1730231763935,0.429315,72980.0,72979.0,0.0209294]
[1730231764231,0.77188,72980.0,72970.0,0.068524]
[1730231764437,0.13185082,72973.0,72971.0,0.3608]
[1730231764633,0.63875082,72972.0,72957.0,0.3608]
[1730231764934,0.068525,72969.0,72967.0,0.3608]
[1730231765127,0.429325,72969.0,72957.0,0.3608]
[1730231765328,0.429325,72969.0,72963.0,0.02080178]
[1730231765329,0.840445,72969.0,72963.0,0.02080178]
[1730231765633,0.840445,72969.0,72938.0,0.068554]
[1730231765634,0.068545,72948.0,72944.0,0.1364]
[1730231765828,0.068545,72948.0,72938.0,0.3608]
[1730231765829,0.13185082,72947.0,72939.0,0.068553]
[1730231766132,0.068549,72944.0,72941.0,0.068551]
[1730231766531,0.3608,72946.0,72941.0,0.068551]
[1730231766730,0.3608,72946.0,72937.0,0.13185082]
[1730231766731,0.068549,72944.0,72943.0,0.02234067]
[1730231767033,0.20039982,72944.0,72943.0,0.02234067]
[1730231767232,0.20039982,72944.0,72943.0,0.02028436]
[1730231767425,1.70039982,72944.0,72935.0,0.068557]
[1730231767627,0.13185082,72939.0,72933.0,0.38096527]
[1730231767937,1.5,72944.0,72934.0,0.068558]
[1730231767938,0.13185082,72935.0,72934.0,0.068558]
[1730231768137,0.13185082,72935.0,72933.0,0.38096527]
[1730231769741,0.13185082,72935.0,72933.0,0.02016527]
[1730231770042,0.13185082,72935.0,72920.0,0.27580778]
[1730231770043,0.61172882,72935.0,72926.0,0.068565]
[1730231770235,0.4998,72938.0,72926.0,0.068565]
[1730231770236,0.13185082,72927.0,72926.0,0.068565]
[1730231770834,1.63185082,72927.0,72926.0,0.068565]
[1730231771948,1.63185082,72927.0,72898.0,0.3608]
[1730231771949,0.068573,72919.0,72898.0,0.3608]
[1730231772127,0.13185082,72899.0,72898.0,0.3608]
[1730231772327,0.13185082,72903.0,72899.0,0.068591]
[1730231772532,0.3608,72918.0,72910.0,0.06858]
[1730231772842,0.00205786,72922.0,72915.0,0.3608]
[1730231773143,0.00205786,72922.0,72916.0,0.13185082]
[1730231773327,0.00205786,72922.0,72915.0,0.3608]
[1730231773328,0.13185082,72919.0,72915.0,0.3608]
[1730231773534,0.00205786,72922.0,72915.0,0.3608]
[1730231773535,0.13185082,72916.0,72915.0,0.3608]
[1730231774431,0.20042582,72916.0,72915.0,0.3608]
[1730231774631,0.06858,72911.0,72894.0,0.068596]
[1730231774835,0.90409082,72916.0,72892.0,0.3608]
[1730231774836,0.13185082,72902.0,72892.0,0.3608]
[1730231775025,0.13185082,72897.0,72892.0,0.3608]
[1730231775430,0.13185082,72897.0,72895.0,0.02265595]
[1730231777229,1.5,72907.0,72896.0,0.3608]
[1730231777433,1.5,72907.0,72903.0,0.3608]
[1730231777842,0.13185082,72904.0,72899.0,0.068591]
[1730231778042,0.13185082,72904.0,72896.0,0.3608]
[1730231778628,0.13185082,72904.0,72903.0,0.3608]
[1730231780034,0.13185082,72904.0,72896.0,0.3608]
[1730231780234,0.20043782,72904.0,72896.0,0.3608]
[1730231780435,0.20043782,72904.0,72903.0,0.3608]
[1730231780635,0.20043782,72904.0,72896.0,0.3608]
[1730231781540,0.13185082,72900.0,72896.0,0.3608]
[1730231782136,0.20044082,72900.0,72896.0,0.3608]
[1730231782339,0.13185082,72900.0,72896.0,0.3608]
[1730231782539,0.068591,72899.0,72896.0,0.3608]
[1730231783449,0.20044082,72900.0,72896.0,0.3608]
[1730231783751,0.13185082,72903.0,72899.0,0.068591]
[1730231784648,0.13185082,72903.0,72902.0,0.3608]
[1730231785043,0.20043782,72903.0,72902.0,0.3608]
[1730231785844,1.70043782,72903.0,72902.0,0.3608]
[1730231786037,0.068594,72896.0,72895.0,0.02265595]
[1730231786242,0.20044482,72896.0,72895.0,0.02265595]
[1730231787350,1.86152,72903.0,72895.0,0.02265595]
[1730231787351,0.13185082,72899.0,72895.0,0.02265595]
[1730231788446,0.13185082,72899.0,72895.0,0.38345595]
[1730231788649,0.20044482,72896.0,72895.0,0.38345595]
[1730231791247,0.13185082,72896.0,72895.0,0.38345595]
[1730231793050,0.13185082,72896.0,72895.0,0.02265595]
[1730231793355,0.56124482,72896.0,72895.0,0.02265595]
[1730231793657,0.27555082,72896.0,72882.0,0.3608]
[1730231793847,0.13185082,72888.0,72882.0,0.3608]
[1730231794051,0.13185082,72888.0,72886.0,0.068602]
[1730231794751,0.0686,72890.0,72886.0,0.068602]
[1730231795262,0.0686,72889.0,72884.0,0.04082411]
[1730231795455,0.0686,72889.0,72884.0,0.068605]
[1730231795649,0.20044882,72892.0,72882.0,0.42212688]
[1730231795851,0.3608,72894.0,72884.0,0.13185082]
[1730231796154,0.3608,72894.0,72892.0,0.068597]
[1730231796552,0.13185082,72895.0,72888.0,0.3608]
[1730231796851,0.068591,72900.0,72897.0,0.068592]
[1730231797053,1.5,72903.0,72897.0,0.13185082]
[1730231797252,1.5,72903.0,72902.0,0.13185082]
[1730231797253,0.00072,72903.0,72902.0,0.13185082]
[1730231797450,0.3608,72908.0,72902.0,0.20043882]
[1730231797657,0.068578,72913.0,72906.0,0.13185082]
[1730231797861,0.068578,72913.0,72912.0,0.068579]
[1730231798250,0.068578,72913.0,72902.0,0.068588]
[1730231798251,0.00205786,72922.0,72918.0,0.068573]
[1730231798560,0.00205786,72922.0,72921.0,0.06857]
[1730231799562,0.00205786,72922.0,72921.0,0.42937]
[1730231800652,0.00205786,72922.0,72921.0,0.3608]
[1730231801050,0.00205786,72922.0,72921.0,0.42937]
[1730231801653,0.00205786,72922.0,72921.0,0.3608]
[1730231801963,0.068572,72919.0,72918.0,0.01661464]
[1730231802157,0.90610868,72922.0,72898.0,0.3608]
[1730231802158,0.1384,72921.0,72907.0,0.429383]
[1730231802362,0.13185082,72909.0,72907.0,0.3608]
[1730231802661,0.13185082,72909.0,72906.0,0.3608]
[1730231803059,0.068579,72912.0,72906.0,0.3608]
[1730231803569,0.068579,72912.0,72905.0,0.3608]
[1730231803755,0.49265082,72909.0,72901.0,0.01646159]
[1730231803962,0.13185082,72902.0,72900.0,0.06859]
[1730231804157,0.13185082,72902.0,72898.0,0.37745476]
[1730231804473,0.13185082,72903.0,72898.0,0.37745476]
[1730231805064,0.20044182,72899.0,72898.0,0.37745476]
[1730231805771,0.068591,72899.0,72898.0,0.01665476]
[1730231805959,0.13185082,72900.0,72896.0,0.00205765]
[1730231806159,0.068593,72897.0,72896.0,0.00205765]
[1730231806668,0.3608,72902.0,72896.0,0.01845249]
[1730231806874,0.3608,72902.0,72896.0,0.08704549]
[1730231807376,0.068587,72903.0,72897.0,0.068593]
[1730231807571,1.5,72901.0,72897.0,0.068593]
[1730231808572,1.568589,72901.0,72897.0,0.068593]
[1730231809265,0.06859,72900.0,72896.0,0.37925249]
[1730231809465,1.69767221,72901.0,72896.0,0.37925249]
[1730231809466,0.068593,72897.0,72896.0,0.37925249]
[1730231810070,1.568593,72897.0,72896.0,0.37925249]
[1730231811068,1.568593,72897.0,72896.0,0.01845249]
[1730231811267,1.929393,72897.0,72896.0,0.01639484]
[1730231811473,0.068602,72887.0,72882.0,0.3608]
[1730231811682,0.19767221,72884.0,72882.0,0.429407]
[1730231812170,0.19767221,72884.0,72882.0,0.44595522]
[1730231812865,0.19767221,72884.0,72882.0,0.37734822]
[1730231813375,0.19767221,72884.0,72883.0,0.068606]
[1730231813669,0.068606,72883.0,72882.0,0.37734822]
[1730231814368,1.568606,72883.0,72872.0,0.1396]
[1730231814575,0.19767221,72876.0,72872.0,0.1396]
[1730231814761,0.19767221,72876.0,72875.0,0.3608]
[1730231815173,1.50084,72883.0,72875.0,0.3608]
[1730231815371,1.5,72883.0,72875.0,0.3608]
[1730231815570,1.5,72883.0,72882.0,0.429407]
[1730231816379,1.5,72883.0,72882.0,0.3608]
[1730231816874,0.26627521,72886.0,72882.0,0.429407]
[1730231817171,0.26627521,72886.0,72882.0,0.3608]
[1730231817367,1.5,72885.0,72882.0,0.3608]
[1730231817768,1.5,72885.0,72882.0,0.429406]
[1730231817965,1.568605,72885.0,72880.0,0.068608]
[1730231818167,0.26628021,72881.0,72875.0,0.429413]
[1730231818371,0.06861,72879.0,72875.0,0.3608]
[1730231819075,0.26628521,72876.0,72875.0,0.3608]
[1730231819277,0.26628521,72876.0,72875.0,0.37708067]
[1730231819463,0.26628521,72876.0,72871.0,0.00205834]
[1730231819663,0.068616,72872.0,72871.0,0.00205834]
[1730231819977,1.568616,72872.0,72871.0,0.00205834]
[1730231822169,1.5,72872.0,72871.0,0.07067534]
[1730231822969,0.20031,72880.0,72879.0,0.06861]
[1730231823182,0.3608,72884.0,72873.0,0.04093313]
[1730231823385,0.068604,72885.0,72883.0,0.068606]
[1730231823574,0.19767221,72888.0,72880.0,0.04093313]
[1730231823575,0.26627421,72888.0,72880.0,0.04093313]
[1730231823771,0.26627821,72883.0,72881.0,0.04093313]
[1730231823968,0.068607,72882.0,72880.0,0.068608]
[1730231824176,0.068607,72882.0,72878.0,0.05450655]
[1730231824177,0.19767221,72888.0,72879.0,0.05450655]
[1730231824372,0.19767221,72888.0,72885.0,0.068603]
[1730231824373,0.068603,72887.0,72885.0,0.068603]
[1730231824676,0.19767221,72888.0,72880.0,0.068608]
[1730231824677,0.068608,72881.0,72880.0,0.068608]
[1730231824875,0.19767221,72881.0,72880.0,0.068608]
[1730231825077,0.19767221,72881.0,72879.0,0.05455528]
[1730231825078,0.19767221,72885.0,72884.0,0.068605]
[1730231825273,0.19767221,72885.0,72884.0,0.429405]
[1730231825474,1.5,72885.0,72884.0,0.429405]
[1730231826171,1.568604,72885.0,72884.0,0.3608]
[1730231826685,1.568604,72885.0,72884.0,0.429405]
[1730231827083,1.5,72885.0,72884.0,0.429405]
[1730231827375,1.5,72885.0,72884.0,0.3608]
[1730231827582,1.5,72885.0,72883.0,0.05455114]
[1730231827770,1.5,72885.0,72880.0,0.01676133]
[1730231827771,0.19767221,72884.0,72881.0,0.05455114]
[1730231827971,0.19767221,72884.0,72880.0,0.01676133]
[1730231827972,0.068608,72881.0,72880.0,0.01676133]
[1730231828280,0.06861,72879.0,72877.0,0.48396214]
[1730231828576,0.19767221,72888.0,72877.0,0.3608]
[1730231828777,0.1428,72897.0,72883.0,0.068606]
[1730231828778,0.068605,72884.0,72883.0,0.068606]
[1730231829168,1.5,72884.0,72883.0,0.068606]
[1730231829576,1.5,72884.0,72883.0,0.429406]
[1730231829884,1.5,72884.0,72883.0,0.3608]
[1730231830176,1.5,72884.0,72883.0,0.429406]
[1730231830878,1.5,72884.0,72883.0,0.49758667]
[1730231831273,1.5,72884.0,72883.0,0.429406]
[1730231832373,1.5,72884.0,72883.0,0.3608]
[1730231832374,1.568605,72884.0,72883.0,0.3608]
[1730231832882,1.5,72884.0,72883.0,0.429406]
[1730231833079,0.068593,72897.0,72893.0,0.068596]
[1730231833280,0.13180647,72902.0,72895.0,0.06834503]
[1730231833477,0.13180647,72906.0,72897.0,0.06834503]
[1730231833673,1.63180647,72898.0,72895.0,0.068595]
[1730231833874,1.63180647,72898.0,72893.0,0.80343906]
[1730231834070,0.20040247,72894.0,72889.0,0.0820447]
[1730231834276,0.13180647,72890.0,72888.0,0.06837415]
[1730231834575,0.207497,72893.0,72889.0,0.06837415]
[1730231834777,0.068598,72892.0,72890.0,0.06837415]
[1730231834983,0.068598,72892.0,72888.0,0.429401]
[1730231835272,0.068598,72892.0,72890.0,0.068599]
[1730231835475,0.068598,72891.0,72890.0,0.068599]
[1730231835979,0.1389,72893.0,72883.0,0.068605]
[1730231836174,0.068606,72883.0,72882.0,0.37741622]
[1730231837081,0.13180647,72889.0,72882.0,0.37741622]
[1730231837272,0.068603,72886.0,72882.0,0.44602322]
[1730231837472,0.20041247,72883.0,72882.0,0.37741622]
[1730231838282,0.90424647,72883.0,72874.0,0.05471368]
[1730231838579,0.068616,72872.0,72871.0,0.01832243]
[1730231838780,0.20042247,72872.0,72871.0,0.00205834]
[1730231839083,0.068616,72872.0,72871.0,0.00205834]
[1730231839380,0.068616,72872.0,72859.0,0.068628]
[1730231839381,0.068616,72872.0,72859.0,0.12334168]
[1730231839590,0.20043247,72862.0,72859.0,0.08476209]
[1730231839884,0.20043247,72862.0,72859.0,0.13947577]
[1730231840084,0.20043247,72862.0,72859.0,0.01613409]
[1730231840279,0.20043247,72862.0,72858.0,0.05471368]
[1730231840280,0.13180647,72862.0,72858.0,0.05471368]
[1730231840484,0.06863,72858.0,72856.0,0.3608]
[1730231840669,0.33224394,72857.0,72856.0,0.0167125]
[1730231840874,0.27060647,72857.0,72846.0,0.05471368]
[1730231841073,0.27060647,72857.0,72845.0,0.068642]
[1730231841074,0.13180647,72847.0,72845.0,0.068642]
[1730231842080,0.13180647,72847.0,72846.0,0.068641]
[1730231842669,1.50072,72851.0,72844.0,0.0820447]
[1730231842670,1.63252647,72851.0,72844.0,0.0820447]
[1730231842871,0.3608,72867.0,72859.0,0.068629]
[1730231843071,0.13180647,72866.0,72863.0,0.068624]
[1730231843274,0.13180647,72866.0,72865.0,0.068623]
[1730231843884,0.13180647,72866.0,72865.0,0.429423]
[1730231844178,0.13180647,72870.0,72868.0,0.068619]
[1730231844383,0.13180647,72870.0,72869.0,0.068619]
[1730231844578,0.00277921,72873.0,72872.0,0.068616]
[1730231844777,0.00277921,72873.0,72872.0,0.429416]
[1730231845082,0.13180647,72891.0,72885.0,0.068603]
[1730231845283,0.1426,72892.0,72889.0,0.3608]
[1730231845782,0.13180647,72890.0,72889.0,0.3608]
[1730231846083,0.068601,72889.0,72884.0,0.068605]
[1730231846386,0.49260647,72885.0,72884.0,0.068605]
[1730231846685,0.55852657,72885.0,72884.0,0.08502142]
[1730231847479,2.12713057,72885.0,72884.0,0.01641642]
[1730231847686,2.05852657,72885.0,72877.0,0.068612]
[1730231847883,0.19772657,72878.0,72875.0,0.06832419]
[1730231848078,0.19772657,72878.0,72876.0,0.068612]
[1730231848476,0.19772657,72878.0,72873.0,0.06832419]
[1730231848687,0.77248,72877.0,72867.0,0.06832419]
[1730231848881,0.068622,72866.0,72860.0,0.06832419]
[1730231849191,0.55852657,72861.0,72855.0,0.05468276]
[1730231849389,0.26635757,72856.0,72855.0,0.05468276]
[1730231849688,0.19772657,72856.0,72854.0,0.05468276]
[1730231849884,0.429432,72855.0,72854.0,0.05468276]
[1730231850092,1.8608,72855.0,72844.0,0.05468276]
[1730231850302,0.3608,72845.0,72843.0,0.068644]
[1730231850982,0.3608,72845.0,72842.0,0.01640654]
[1730231851185,0.3608,72845.0,72844.0,0.068643]
[1730231851385,1.86152,72855.0,72844.0,0.068643]
[1730231851582,1.8608,72855.0,72851.0,0.068635]
[1730231851890,1.8608,72855.0,72845.0,0.05468276]
[1730231852083,1.8608,72855.0,72845.0,0.41548276]
[1730231852398,1.8608,72855.0,72845.0,0.3608]
[1730231852991,1.8608,72855.0,72852.0,0.068634]
[1730231853286,0.19772657,72854.0,72844.0,0.1417]
[1730231853493,0.19772657,72848.0,72839.0,0.36188]
[1730231853679,0.26636557,72848.0,72841.0,0.068645]
[1730231854189,0.19772657,72848.0,72839.0,0.3608]
[1730231854389,1.86156,72855.0,72838.0,0.01614549]
[1730231854390,0.068647,72839.0,72838.0,0.01614549]
[1730231854581,0.06865,72836.0,72825.0,0.06866]
[1730231854890,0.62717657,72836.0,72827.0,0.068658]
[1730231855092,2.12717657,72836.0,72827.0,0.068658]
[1730231855391,2.05852657,72836.0,72831.0,0.068654]
[1730231855592,2.05852657,72836.0,72823.0,0.3608]
[1730231855593,1.8608,72836.0,72835.0,0.0183002]
[1730231856583,1.8608,72836.0,72835.0,0.0869512]
[1730231856790,0.3608,72842.0,72835.0,0.0183002]
[1730231857093,0.3608,72842.0,72841.0,0.068646]
[1730231857889,0.3608,72842.0,72835.0,0.0183002]
[1730231858188,0.55852657,72842.0,72835.0,0.0869512]
[1730231858388,0.19772657,72836.0,72835.0,0.0183002]
[1730231858593,0.62717657,72836.0,72835.0,0.0183002]
[1730231861397,0.068667,72818.0,72817.0,0.3608]
[1730231861692,0.62719357,72818.0,72817.0,0.01754827]
[1730231861898,2.05852657,72818.0,72809.0,0.429475]
[1730231862095,0.068669,72817.0,72809.0,0.429475]
[1730231862298,0.06867,72816.0,72811.0,0.068674]
[1730231862893,0.19772657,72812.0,72809.0,0.37905529]
[1730231863087,0.19772657,72812.0,72809.0,0.01825529]
[1730231863088,0.068675,72810.0,72809.0,0.01825529]
[1730231863293,0.41204,72811.0,72800.0,0.068684]
[1730231863597,0.26641057,72800.0,72799.0,0.00206039]
[1730231864588,0.19772657,72800.0,72799.0,0.00206039]
[1730231865293,1.69772657,72800.0,72799.0,0.00206039]
[1730231865692,1.5,72800.0,72799.0,0.00206039]
[1730231865994,1.5,72800.0,72799.0,0.07074539]
[1730231867386,1.5,72800.0,72799.0,0.00206039]
[1730231868086,0.26641057,72801.0,72799.0,0.00206039]
[1730231868289,0.7216,72803.0,72799.0,0.00206039]
[1730231869093,0.3608,72803.0,72802.0,0.068682]
[1730231869700,0.3608,72808.0,72802.0,0.068682]
[1730231869901,0.3608,72808.0,72803.0,0.068681]
[1730231870487,1.62792,72814.0,72807.0,0.55852657]
[1730231870488,0.00072,72814.0,72807.0,0.55852657]
[1730231870688,0.36286071,72827.0,72826.0,0.06866]
[1730231871901,0.36286071,72827.0,72826.0,0.26638657]
[1730231872204,0.36286071,72827.0,72826.0,0.62718657]
[1730231872205,0.00206071,72827.0,72826.0,0.62718657]
[1730231873097,0.00206071,72827.0,72826.0,0.56694]
[1730231873397,0.00206071,72827.0,72826.0,0.585236]
[1730231873903,0.3608,72832.0,72829.0,0.068656]
[1730231874103,0.3608,72832.0,72830.0,0.068656]
[1730231876302,0.55852657,72838.0,72831.0,0.068655]
[1730231876495,0.55852657,72838.0,72828.0,0.19772657]
[1730231876496,0.3608,72838.0,72828.0,0.19772657]
[1730231876700,0.3608,72838.0,72837.0,0.068649]
[1730231878505,0.3608,72838.0,72832.0,0.3608]
[1730231878809,0.068651,72836.0,72830.0,0.068656]
[1730231879204,0.068651,72836.0,72827.0,0.196558]
[1730231880011,0.068651,72836.0,72827.0,0.1279]
[1730231880210,0.3608,72838.0,72830.0,0.068656]
[1730231880409,0.3608,72838.0,72831.0,0.19772657]
[1730231880605,0.3608,72838.0,72837.0,0.26637557]
[1730231880814,0.3608,72838.0,72837.0,0.068649]
[1730231881007,0.3608,72838.0,72831.0,0.19772657]
[1730231881202,0.3608,72838.0,72834.0,0.068652]
[1730231881402,0.3608,72838.0,72835.0,0.068651]
[1730231881897,0.429449,72838.0,72831.0,0.068655]
[1730231882301,0.429449,72838.0,72827.0,0.14582669]
[1730231882510,0.429449,72838.0,72832.0,0.068654]
[1730231883300,0.068652,72834.0,72828.0,0.068658]
[1730231884005,0.3608,72838.0,72827.0,0.14868669]
[1730231884208,0.3608,72838.0,72834.0,0.26637857]
[1730231884508,0.3608,72838.0,72835.0,0.068651]
[1730231884711,0.3608,72838.0,72837.0,0.068649]
[1730231885011,0.3608,72851.0,72842.0,0.068645]
[1730231885214,0.3608,72869.0,72849.0,0.19772657]
[1730231885407,0.3608,72878.0,72868.0,0.19772657]
[1730231885712,0.3608,72878.0,72871.0,0.068617]
[1730231886015,0.3608,72878.0,72877.0,0.26633857]
[1730231886509,1.5,72883.0,72881.0,0.068608]
[1730231886709,0.3608,72892.0,72887.0,0.068602]
[1730231886910,0.07066077,72888.0,72883.0,0.068606]
[1730231887207,0.07066077,72888.0,72882.0,0.19772657]
[1730231887208,0.00205877,72888.0,72882.0,0.19772657]
[1730231887616,0.00205877,72888.0,72882.0,0.26633357]
[1730231888006,0.00205877,72888.0,72882.0,0.19772657]
[1730231888215,0.00205877,72888.0,72887.0,0.26632857]
[1730231889307,0.00205877,72888.0,72887.0,0.62712857]
[1730231890309,1.5,72901.0,72887.0,0.55852657]
[1730231890619,0.068593,72897.0,72888.0,0.068601]
[1730231890915,0.068593,72897.0,72889.0,0.0686]
[1730231891317,0.068593,72897.0,72887.0,0.56012657]
[1730231891502,0.068593,72897.0,72887.0,0.55852657]
[1730231891708,1.50072,72901.0,72887.0,0.55852657]
[1730231892006,1.5,72901.0,72899.0,0.19772657]
[1730231892211,0.3608,72905.0,72899.0,0.19772657]
[1730231892813,1.5,72904.0,72896.0,0.13068]
[1730231893019,1.5,72904.0,72894.0,0.3608]
[1730231893213,0.068592,72899.0,72895.0,0.13068]
[1730231893413,0.068592,72898.0,72895.0,0.13068]
[1730231893614,0.068595,72895.0,72894.0,0.3787056]
[1730231894215,0.068595,72895.0,72894.0,0.0179056]
[1730231894517,0.068599,72891.0,72888.0,0.13068]
[1730231894719,0.068595,72895.0,72888.0,0.01797534]
[1730231894910,0.068595,72895.0,72887.0,0.3608]
[1730231894911,0.068596,72894.0,72887.0,0.3608]
[1730231895115,0.068597,72893.0,72887.0,0.3608]
[1730231895311,0.068596,72894.0,72887.0,0.3608]
[1730231895524,0.3608,72899.0,72889.0,0.19772657]
[1730231895821,1.50072,72904.0,72894.0,0.55852657]
[1730231896132,0.068587,72903.0,72894.0,0.55852657]
[1730231896422,1.50072,72904.0,72894.0,0.3608]
[1730231896626,0.068593,72898.0,72894.0,0.3608]
[1730231896809,1.5,72904.0,72894.0,0.3608]
[1730231896810,0.068595,72895.0,72894.0,0.3608]
[1730231897530,0.068601,72888.0,72887.0,0.01798965]
[1730231897823,0.068601,72888.0,72855.0,0.38436]
[1730231897824,0.068609,72880.0,72866.0,0.13064]
[1730231898011,0.429409,72880.0,72864.0,0.19772657]
[1730231898216,0.429409,72880.0,72879.0,0.02011039]
[1730231898521,1.929409,72880.0,72879.0,0.00205814]
[1730231901016,0.068614,72875.0,72874.0,0.01747228]
[1730231901224,0.068619,72870.0,72863.0,0.068625]
[1730231901923,1.8608,72880.0,72869.0,0.19772657]
[1730231902126,0.068618,72871.0,72864.0,0.35070079]
[1730231902424,0.068618,72871.0,72864.0,0.19772657]
[1730231902823,0.19772657,72873.0,72863.0,0.13064]
[1730231903024,0.068622,72866.0,72863.0,0.13064]
[1730231903218,0.19772657,72873.0,72863.0,0.13064]
[1730231903523,0.06862,72868.0,72863.0,0.13064]
[1730231903714,0.3608,72865.0,72863.0,0.199265]
[1730231903918,0.3608,72865.0,72863.0,0.068625]
[1730231904114,0.06862,72868.0,72863.0,0.068625]
[1730231904621,0.55852657,72864.0,72854.0,0.00152]
[1730231904819,0.55852657,72864.0,72831.0,0.3608]
[1730231904820,0.068633,72854.0,72831.0,0.3608]
[1730231905021,0.19772657,72832.0,72831.0,0.3608]
[1730231905224,0.19772657,72838.0,72831.0,0.3608]
[1730231905426,0.19772657,72843.0,72831.0,0.3608]
[1730231905725,0.3608,72836.0,72824.0,0.19772657]
[1730231905921,0.19772657,72825.0,72824.0,0.0179226]
[1730231906119,0.55852657,72825.0,72819.0,0.00152]
[1730231906526,0.55852657,72825.0,72814.0,0.3608]
[1730231906725,0.068662,72824.0,72814.0,0.3608]
[1730231906915,0.55852657,72825.0,72814.0,0.37851328]
[1730231906916,0.068665,72821.0,72814.0,0.37851328]
[1730231907121,0.55852657,72825.0,72814.0,0.37851328]
[1730231907122,0.068666,72819.0,72814.0,0.37851328]
[1730231907319,0.55852657,72825.0,72814.0,0.37851328]
[1730231907320,0.068663,72823.0,72814.0,0.37851328]
[1730231907522,0.55852657,72825.0,72814.0,0.37851328]
[1730231907728,0.3608,72815.0,72814.0,0.01771328]
[1730231907936,0.3608,72815.0,72813.0,0.07073147]
[1730231908729,0.068665,72821.0,72813.0,0.07073147]
[1730231909427,0.068665,72821.0,72813.0,0.0889421]
[1730231911235,0.068666,72820.0,72813.0,0.0889421]
[1730231911721,0.068662,72824.0,72816.0,0.068669]
[1730231911921,0.3608,72825.0,72816.0,0.068669]
[1730231912127,0.068663,72823.0,72816.0,0.068669]
[1730231912921,1.50076,72834.0,72822.0,0.3608]
[1730231912922,0.00076,72834.0,72822.0,0.3608]
[1730231913119,0.3608,72844.0,72831.0,0.19772657]
[1730231913326,0.068639,72849.0,72841.0,0.068645]
[1730231913632,0.06864,72847.0,72840.0,0.068646]
[1730231914133,0.3608,72850.0,72838.0,0.3608]
[1730231914333,0.068644,72843.0,72838.0,0.3608]
[1730231914833,1.63402,72856.0,72830.0,0.37911915]
[1730231914834,0.06865,72837.0,72830.0,0.37911915]
[1730231915035,0.19772657,72836.0,72830.0,0.37911915]
[1730231915223,0.19772657,72836.0,72830.0,0.01831915]
[1730231915538,0.3608,72841.0,72828.0,0.068657]
[1730231915539,0.06865,72837.0,72828.0,0.068657]
[1730231916033,0.06865,72837.0,72829.0,0.429457]
[1730231916229,0.068643,72844.0,72837.0,0.068649]
[1730231916425,0.068644,72843.0,72835.0,0.429451]
[1730231916633,0.3608,72849.0,72838.0,0.068648]
[1730231916834,0.19772657,72847.0,72835.0,0.3608]
[1730231917035,0.19772657,72841.0,72835.0,0.3608]
[1730231917433,0.06865,72837.0,72835.0,0.3608]
[1730231917641,0.26637257,72841.0,72835.0,0.3608]
[1730231917832,0.19772657,72841.0,72835.0,0.3608]